[Event "*** Titled Tuesday 3|2 Blitz"]
[Site "Chess.com"]
[Date "2016.01.05"]
[Round "2"]
[White "oskariot"]
[Black "ajkom197"]
[Result "1-0"]
[WhiteElo "2341"]
[BlackElo "2204"]
[TimeControl "180+2"]
[EndTime "11:21:48 PST"]
[Termination "oskariot won by resignation"]

1. e4 {[%clk 0:03:00.9]} 1... c6 {[%clk 0:03:00.9]} 2. d4 {[%clk 0:02:57.9]}
2... d5 {[%clk 0:03:02.8]} 3. e5 {[%clk 0:02:59.6]} 3... Bf5 {[%clk 0:03:03.2]}
4. Nd2 {[%clk 0:03:01.2]} 4... e6 {[%clk 0:03:03.1]} 5. Nb3 {[%clk 0:03:02.8]}
5... Nd7 {[%clk 0:02:55.4]} 6. Nf3 {[%clk 0:03:03.3]} 6... Ne7 {[%clk
0:02:55.9]} 7. Be2 {[%clk 0:03:03.9]} 7... c5 {[%clk 0:02:56.1]} 8. Nxc5 {[%clk
0:02:45.6]} 8... Nxc5 {[%clk 0:02:55.7]} 9. dxc5 {[%clk 0:02:46.9]} 9... Qa5+
{[%clk 0:02:54.4]} 10. c3 {[%clk 0:02:44.1]} 10... Qxc5 {[%clk 0:02:54.7]} 11.
O-O {[%clk 0:02:44.3]} 11... Nc6 {[%clk 0:02:54.2]} 12. Be3 {[%clk 0:02:36.2]}
12... Qa5 {[%clk 0:02:54.8]} 13. Qb3 {[%clk 0:02:32.5]} 13... Qc7 {[%clk
0:02:49.2]} 14. Rac1 {[%clk 0:02:26.4]} 14... Be7 {[%clk 0:02:44.6]} 15. c4
{[%clk 0:02:27.5]} 15... dxc4 {[%clk 0:02:45.6]} 16. Rxc4 {[%clk 0:02:28.2]}
16... O-O {[%clk 0:02:45.8]} 17. Qc3 {[%clk 0:02:17.2]} 17... Rac8 {[%clk
0:02:27.4]} 18. Rc1 {[%clk 0:02:04.9]} 18... Qb8 {[%clk 0:02:19.2]} 19. Kh1
{[%clk 0:01:38.7]} 19... Rcd8 {[%clk 0:02:18.2]} 20. a3 {[%clk 0:01:29.1]} 20...
h6 {[%clk 0:02:17.9]} 21. h3 {[%clk 0:01:29.4]} 21... Rd5 {[%clk 0:02:14.4]} 22.
Bf4 {[%clk 0:01:10.9]} 22... Rfd8 {[%clk 0:02:13.6]} 23. b4 {[%clk 0:00:59.6]}
23... Bf8 {[%clk 0:01:37.9]} 24. Qb2 {[%clk 0:00:55]} 24... Ne7 {[%clk
0:01:30.4]} 25. Nd4 {[%clk 0:00:47.9]} 25... Ng6 {[%clk 0:01:09.1]} 26. Bg3
{[%clk 0:00:48.8]} 26... Rxe5 {[%clk 0:00:56.5]} 27. Nf3 {[%clk 0:00:22.9]}
27... Rxe2 {[%clk 0:00:53.4]} 28. Qxe2 {[%clk 0:00:23]} 28... Bd6 {[%clk
0:00:54]} 29. Bxd6 {[%clk 0:00:22.8]} 29... Qxd6 {[%clk 0:00:55.9]} 30. Rd4
{[%clk 0:00:23.2]} 30... Qe7 {[%clk 0:00:53.1]} 31. Qd2 {[%clk 0:00:23.9]} 31...
Rxd4 {[%clk 0:00:50.6]} 32. Qxd4 {[%clk 0:00:25]} 32... b6 {[%clk 0:00:48.7]}
33. Qc3 {[%clk 0:00:18.6]} 33... Be4 {[%clk 0:00:42.6]} 34. Qe3 {[%clk
0:00:18.9]} 34... Bd5 {[%clk 0:00:40.9]} 35. Nd2 {[%clk 0:00:19.3]} 35... Qf6
{[%clk 0:00:40]} 36. Kh2 {[%clk 0:00:11]} 36... Qb2 {[%clk 0:00:36.6]} 37. Qc3
{[%clk 0:00:11.3]} 37... Qa2 {[%clk 0:00:36.8]} 38. Rc2 {[%clk 0:00:12.5]} 38...
Nf4 {[%clk 0:00:27.6]} 39. Rxa2 {[%clk 0:00:12.8]} 39... Bxa2 {[%clk 0:00:29.5]}
40. Qc8+ {[%clk 0:00:13.7]} 40... Kh7 {[%clk 0:00:29.8]} 41. Qc2+ {[%clk
0:00:15.2]} 1-0

[Event "*** Titled Tuesday 3|2 Blitz"]
[Site "Chess.com"]
[Date "2016.01.05"]
[Round "2"]
[White "APL2001"]
[Black "Grootneus"]
[Result "1-0"]
[WhiteElo "2028"]
[BlackElo "2002"]
[TimeControl "180+2"]
[EndTime "11:21:57 PST"]
[Termination "APL2001 won by checkmate"]

1. e4 {[%clk 0:02:42.9]} 1... c5 {[%clk 0:02:59.6]} 2. Nf3 {[%clk 0:02:38.3]}
2... Nc6 {[%clk 0:03:00.6]} 3. d4 {[%clk 0:02:39.3]} 3... cxd4 {[%clk
0:03:01.6]} 4. Nxd4 {[%clk 0:02:40.4]} 4... Nf6 {[%clk 0:03:03.2]} 5. Nc3 {[%clk
0:02:41.4]} 5... e5 {[%clk 0:03:04.8]} 6. Ndb5 {[%clk 0:02:41.7]} 6... d6 {[%clk
0:03:06.4]} 7. Bg5 {[%clk 0:02:32.8]} 7... a6 {[%clk 0:03:06.5]} 8. Na3 {[%clk
0:02:33.8]} 8... b5 {[%clk 0:03:08]} 9. Nd5 {[%clk 0:02:34.6]} 9... Be7 {[%clk
0:03:09]} 10. Bxf6 {[%clk 0:02:35.7]} 10... Bxf6 {[%clk 0:03:09.4]} 11. c3
{[%clk 0:02:37.1]} 11... Ne7 {[%clk 0:03:08.4]} 12. Nxf6+ {[%clk 0:02:35.1]}
12... gxf6 {[%clk 0:03:10.3]} 13. Nc2 {[%clk 0:02:35.6]} 13... Bb7 {[%clk
0:03:10.3]} 14. Bd3 {[%clk 0:02:32.1]} 14... d5 {[%clk 0:03:11.4]} 15. exd5
{[%clk 0:02:32.7]} 15... Nxd5 {[%clk 0:03:02.3]} 16. Be4 {[%clk 0:02:30.4]}
16... f5 {[%clk 0:02:36.9]} 17. Bxd5 {[%clk 0:02:22.7]} 17... Qxd5 {[%clk
0:02:35.5]} 18. Qxd5 {[%clk 0:02:22.5]} 18... Bxd5 {[%clk 0:02:36.2]} 19. Ne3
{[%clk 0:02:23.6]} 19... Be6 {[%clk 0:02:35.8]} 20. O-O {[%clk 0:02:19.7]} 20...
f4 {[%clk 0:02:36.4]} 21. Nc2 {[%clk 0:02:20.2]} 21... O-O-O {[%clk 0:02:31.3]}
22. Rfe1 {[%clk 0:02:12.4]} 22... f6 {[%clk 0:02:30.4]} 23. Nd4 {[%clk 0:02:04]}
23... Bg4 {[%clk 0:02:08.4]} 24. Nb3 {[%clk 0:01:58.9]} 24... Bh5 {[%clk
0:01:51.2]} 25. f3 {[%clk 0:01:51]} 25... Rd5 {[%clk 0:01:41.9]} 26. Rad1 {[%clk
0:01:40.9]} 26... Rhd8 {[%clk 0:01:41.7]} 27. Rxd5 {[%clk 0:01:41.9]} 27... Rxd5
{[%clk 0:01:42.3]} 28. Kf2 {[%clk 0:01:42.9]} 28... Bg6 {[%clk 0:01:39.1]} 29.
Ke2 {[%clk 0:01:36.1]} 29... Bd3+ {[%clk 0:01:39.7]} 30. Kf2 {[%clk 0:01:36.5]}
30... Bc4 {[%clk 0:01:31.1]} 31. g3 {[%clk 0:01:29.5]} 31... fxg3+ {[%clk
0:01:31.6]} 32. hxg3 {[%clk 0:01:30.5]} 32... Kc7 {[%clk 0:01:30.1]} 33. f4
{[%clk 0:01:26.2]} 33... Kb6 {[%clk 0:01:20.4]} 34. fxe5 {[%clk 0:01:20]} 34...
fxe5 {[%clk 0:01:21]} 35. Ke3 {[%clk 0:01:19.1]} 35... a5 {[%clk 0:01:18.3]} 36.
Nc1 {[%clk 0:01:10.7]} 36... Rd6 {[%clk 0:00:58.6]} 37. b3 {[%clk 0:01:05.9]}
37... Bf7 {[%clk 0:00:55.8]} 38. Nd3 {[%clk 0:01:04.8]} 38... e4 {[%clk
0:00:51.5]} 39. Ne5 {[%clk 0:00:57.8]} 39... Bd5 {[%clk 0:00:46.7]} 40. c4
{[%clk 0:00:55.7]} 40... Bb7 {[%clk 0:00:38.6]} 41. Rh1 {[%clk 0:00:54.2]} 41...
Re6 {[%clk 0:00:39]} 42. Rh5 {[%clk 0:00:48.1]} 42... bxc4 {[%clk 0:00:33.1]}
43. Nxc4+ {[%clk 0:00:48.4]} 43... Ka6 {[%clk 0:00:28.9]} 44. Rxa5# {[%clk
0:00:49.2]} 1-0

[Event "*** Titled Tuesday 3|2 Blitz"]
[Site "Chess.com"]
[Date "2016.01.05"]
[Round "2"]
[White "ruifeng"]
[Black "IMRosen"]
[Result "1-0"]
[WhiteElo "2250"]
[BlackElo "2204"]
[TimeControl "180+2"]
[EndTime "11:22:13 PST"]
[Termination "ruifeng won by resignation"]

1. e4 {[%clk 0:03:01.9]} 1... c5 {[%clk 0:03:00.6]} 2. Nc3 {[%clk 0:03:02.7]}
2... e6 {[%clk 0:03:01.9]} 3. g3 {[%clk 0:03:02.1]} 3... a6 {[%clk 0:03:02.8]}
4. a4 {[%clk 0:03:02.8]} 4... Nc6 {[%clk 0:03:02.4]} 5. Bg2 {[%clk 0:03:03.9]}
5... Nf6 {[%clk 0:03:03.3]} 6. d3 {[%clk 0:03:03.3]} 6... d5 {[%clk 0:03:04.4]}
7. f4 {[%clk 0:03:02.2]} 7... Rb8 {[%clk 0:02:51.4]} 8. e5 {[%clk 0:03:01.7]}
8... Ng8 {[%clk 0:02:52.3]} 9. Nf3 {[%clk 0:03:01.9]} 9... h5 {[%clk 0:02:51.8]}
10. h3 {[%clk 0:03:00.7]} 10... Nh6 {[%clk 0:02:53]} 11. O-O {[%clk 0:03:01.6]}
11... Nf5 {[%clk 0:02:54.3]} 12. Ne2 {[%clk 0:03:02.2]} 12... Be7 {[%clk
0:02:55]} 13. c3 {[%clk 0:02:58.3]} 13... b5 {[%clk 0:02:56.5]} 14. axb5 {[%clk
0:02:58.5]} 14... axb5 {[%clk 0:02:58.4]} 15. g4 {[%clk 0:02:55.9]} 15... hxg4
{[%clk 0:02:59.1]} 16. hxg4 {[%clk 0:02:57.1]} 16... Nh4 {[%clk 0:03:00.8]} 17.
Nxh4 {[%clk 0:02:57.6]} 17... Rxh4 {[%clk 0:02:54.6]} 18. Ng3 {[%clk 0:02:55.9]}
18... Bb7 {[%clk 0:02:39.6]} 19. Qe2 {[%clk 0:02:52.4]} 19... b4 {[%clk
0:02:32.1]} 20. f5 {[%clk 0:02:29.9]} 20... Bg5 {[%clk 0:02:19]} 21. fxe6 {[%clk
0:02:18.6]} 21... fxe6 {[%clk 0:02:20]} 22. Qf2 {[%clk 0:02:18.3]} 22... Nxe5
{[%clk 0:01:44.8]} 23. Qf8+ {[%clk 0:02:16.8]} 23... Kd7 {[%clk 0:01:46]} 24.
Qxg7+ {[%clk 0:02:17.6]} 24... Be7 {[%clk 0:01:32.3]} 25. Qxe5 {[%clk
0:02:18.5]} 25... Rxg4 {[%clk 0:01:34]} 26. Bf4 {[%clk 0:02:15.1]} 26... Ra8
{[%clk 0:01:27.5]} 27. Rxa8 {[%clk 0:01:44.8]} 27... Bxa8 {[%clk 0:01:27.2]} 28.
Ra1 {[%clk 0:01:41.3]} 28... Bb7 {[%clk 0:01:18.1]} 29. Bh3 {[%clk 0:01:32.5]}
29... Rg6 {[%clk 0:01:07.8]} 30. Ra7 {[%clk 0:01:32.9]} 30... Kc6 {[%clk
0:01:02.2]} 31. Bxe6 {[%clk 0:01:27.4]} 31... Kb6 {[%clk 0:00:59.3]} 32. Ra1
{[%clk 0:01:13.4]} 32... Bd6 {[%clk 0:00:22.1]} 33. Qxd6+ {[%clk 0:01:09.2]}
33... Qxd6 {[%clk 0:00:24]} 34. Bxd6 {[%clk 0:01:10.3]} 34... Rxe6 {[%clk
0:00:25.6]} 35. Bf4 {[%clk 0:01:10.5]} 35... d4 {[%clk 0:00:18.4]} 36. cxd4
{[%clk 0:01:07.8]} 36... cxd4 {[%clk 0:00:20.3]} 37. Kf2 {[%clk 0:01:04.3]}
37... Ba6 {[%clk 0:00:20.2]} 38. Ne2 {[%clk 0:01:01.7]} 38... Rf6 {[%clk
0:00:15.5]} 39. Rd1 {[%clk 0:00:59.8]} 39... Kc5 {[%clk 0:00:14]} 40. Kf3 {[%clk
0:00:57]} 40... Bb7+ {[%clk 0:00:15]} 41. Kg4 {[%clk 0:00:54.3]} 41... Bc8+
{[%clk 0:00:15.7]} 42. Kf3 {[%clk 0:00:49.2]} 42... Bb7+ {[%clk 0:00:16.3]} 43.
Kg3 {[%clk 0:00:49.1]} 43... Kd5 {[%clk 0:00:16.3]} 44. Rh1 {[%clk 0:00:45.5]}
44... Rg6+ {[%clk 0:00:08.6]} 45. Kf2 {[%clk 0:00:45.9]} 45... Ba6 {[%clk
0:00:09.5]} 46. Rh5+ {[%clk 0:00:46.4]} 46... Kc6 {[%clk 0:00:08.2]} 47. Nxd4+
{[%clk 0:00:47.2]} 47... Kb6 {[%clk 0:00:09.7]} 48. Ke3 {[%clk 0:00:48.6]} 48...
Rg2 {[%clk 0:00:09.2]} 49. Rh2 {[%clk 0:00:49.7]} 49... Rg1 {[%clk 0:00:07.7]}
50. Rh6+ {[%clk 0:00:50.5]} 50... Kb7 {[%clk 0:00:06.4]} 51. Nb3 {[%clk
0:00:49.3]} 51... Bb5 {[%clk 0:00:03.7]} 52. Nc5+ {[%clk 0:00:50.1]} 52... Kc8
{[%clk 0:00:04.7]} 53. Rh8+ {[%clk 0:00:49]} 1-0

[Event "*** Titled Tuesday 3|2 Blitz"]
[Site "Chess.com"]
[Date "2016.01.05"]
[Round "2"]
[White "LittlePeasant"]
[Black "Colombiano07"]
[Result "0-1"]
[WhiteElo "2276"]
[BlackElo "2145"]
[TimeControl "180+2"]
[EndTime "11:22:26 PST"]
[Termination "Colombiano07 won by resignation"]

1. Nf3 {[%clk 0:03:01.9]} 1... Nf6 {[%clk 0:03:00.3]} 2. c4 {[%clk 0:03:02.7]}
2... d6 {[%clk 0:03:01]} 3. g3 {[%clk 0:03:02.4]} 3... e5 {[%clk 0:03:01.1]} 4.
Bg2 {[%clk 0:03:01.8]} 4... Be7 {[%clk 0:03:01.8]} 5. Nc3 {[%clk 0:03:00.7]}
5... O-O {[%clk 0:03:01.8]} 6. d4 {[%clk 0:03:01.3]} 6... Nbd7 {[%clk
0:02:57.6]} 7. O-O {[%clk 0:03:01.5]} 7... c6 {[%clk 0:02:58.1]} 8. e4 {[%clk
0:03:01.9]} 8... Qc7 {[%clk 0:02:58.5]} 9. h3 {[%clk 0:03:02.8]} 9... a6 {[%clk
0:02:59]} 10. Qc2 {[%clk 0:03:02.8]} 10... b5 {[%clk 0:02:55.8]} 11. Rd1 {[%clk
0:02:57.7]} 11... Bb7 {[%clk 0:02:52.2]} 12. b3 {[%clk 0:02:39.9]} 12... Rfe8
{[%clk 0:02:49.6]} 13. Bb2 {[%clk 0:02:40]} 13... Bf8 {[%clk 0:02:45.2]} 14.
Rac1 {[%clk 0:02:36.7]} 14... exd4 {[%clk 0:02:41.7]} 15. Nxd4 {[%clk
0:02:30.6]} 15... b4 {[%clk 0:02:39.2]} 16. Nce2 {[%clk 0:02:20.6]} 16... c5
{[%clk 0:02:39.9]} 17. Nf5 {[%clk 0:02:21.4]} 17... Bxe4 {[%clk 0:02:37.4]} 18.
Bxe4 {[%clk 0:02:19.3]} 18... Rxe4 {[%clk 0:02:34.5]} 19. Nf4 {[%clk 0:02:17.6]}
19... Rae8 {[%clk 0:02:34.6]} 20. Nd5 {[%clk 0:02:11.7]} 20... Nxd5 {[%clk
0:02:32]} 21. Rxd5 {[%clk 0:02:13.6]} 21... Re2 {[%clk 0:02:28.2]} 22. Rd2
{[%clk 0:02:07]} 22... Rxd2 {[%clk 0:02:26]} 23. Qxd2 {[%clk 0:02:08.9]} 23...
Ne5 {[%clk 0:02:26.1]} 24. Qd5 {[%clk 0:01:55.2]} 24... Qd7 {[%clk 0:02:19.6]}
25. g4 {[%clk 0:01:41.6]} 25... h5 {[%clk 0:02:15.9]} 26. f3 {[%clk 0:01:11.6]}
26... g6 {[%clk 0:01:53.6]} 27. Ng3 {[%clk 0:01:11.8]} 27... Bg7 {[%clk
0:01:45.5]} 28. Rc2 {[%clk 0:00:49]} 28... hxg4 {[%clk 0:01:42]} 29. hxg4 {[%clk
0:00:50]} 29... Qe7 {[%clk 0:01:26.7]} 30. Kg2 {[%clk 0:00:43.7]} 30... Qf6
{[%clk 0:01:13.9]} 31. Re2 {[%clk 0:00:38.5]} 31... Qf4 {[%clk 0:01:08.1]} 32.
Qe4 {[%clk 0:00:34.9]} 32... Qxe4 {[%clk 0:00:56]} 33. Nxe4 {[%clk 0:00:36.8]}
33... Rd8 {[%clk 0:00:49.6]} 34. Rd2 {[%clk 0:00:36.5]} 34... f5 {[%clk
0:00:48.8]} 35. gxf5 {[%clk 0:00:36]} 35... gxf5 {[%clk 0:00:49.6]} 36. Nxc5
{[%clk 0:00:37.5]} 36... Nxc4 {[%clk 0:00:27.6]} 37. bxc4 {[%clk 0:00:38.3]}
37... Bxb2 {[%clk 0:00:27.6]} 38. Nb7 {[%clk 0:00:38.7]} 38... Bc3 {[%clk
0:00:25.9]} 39. Rd5 {[%clk 0:00:38.4]} 39... Re8 {[%clk 0:00:23]} 40. Nxd6
{[%clk 0:00:36.5]} 40... Re2+ {[%clk 0:00:23.7]} 41. Kg3 {[%clk 0:00:34.9]}
41... Rxa2 {[%clk 0:00:25.6]} 42. c5 {[%clk 0:00:32.9]} 42... b3 {[%clk
0:00:26.7]} 43. c6 {[%clk 0:00:34]} 43... Rc2 {[%clk 0:00:23.5]} 44. Nxf5 {[%clk
0:00:23]} 44... b2 {[%clk 0:00:24.5]} 45. Rd1 {[%clk 0:00:23.3]} 45... Rc1
{[%clk 0:00:25.7]} 46. c7 {[%clk 0:00:24.1]} 46... Be5+ {[%clk 0:00:26.1]} 47.
f4 {[%clk 0:00:23.7]} 47... Bxc7 {[%clk 0:00:26.6]} 48. Rd7 {[%clk 0:00:24.9]}
48... b1=Q {[%clk 0:00:24.1]} 49. Nh6+ {[%clk 0:00:26.5]} 49... Kf8 {[%clk
0:00:24.9]} 50. Rf7+ {[%clk 0:00:26.1]} 50... Ke8 {[%clk 0:00:25.8]} 51. Kg4
{[%clk 0:00:27.2]} 51... Qg6+ {[%clk 0:00:25.7]} 0-1

[Event "*** Titled Tuesday 3|2 Blitz"]
[Site "Chess.com"]
[Date "2016.01.05"]
[Round "2"]
[White "JustKid"]
[Black "maciek_92"]
[Result "0-1"]
[WhiteElo "2099"]
[BlackElo "2221"]
[TimeControl "180+2"]
[EndTime "11:22:48 PST"]
[Termination "maciek_92 won by checkmate"]

1. d4 {[%clk 0:03:00.6]} 1... Nf6 {[%clk 0:02:59]} 2. Nf3 {[%clk 0:03:00.6]}
2... e6 {[%clk 0:02:59.5]} 3. c4 {[%clk 0:03:01.5]} 3... d5 {[%clk 0:03:00.9]}
4. g3 {[%clk 0:03:02]} 4... dxc4 {[%clk 0:03:00.2]} 5. Bg2 {[%clk 0:03:03]} 5...
Nc6 {[%clk 0:03:00.4]} 6. Qa4 {[%clk 0:02:58.5]} 6... Bb4+ {[%clk 0:02:59.3]} 7.
Bd2 {[%clk 0:02:58.3]} 7... Bd6 {[%clk 0:03:00.6]} 8. Qxc4 {[%clk 0:02:55.5]}
8... O-O {[%clk 0:03:02.1]} 9. Nc3 {[%clk 0:02:54.4]} 9... e5 {[%clk 0:03:01.7]}
10. dxe5 {[%clk 0:02:52.5]} 10... Nxe5 {[%clk 0:03:02]} 11. Nxe5 {[%clk
0:02:53.7]} 11... Bxe5 {[%clk 0:03:03.6]} 12. Rd1 {[%clk 0:02:52.3]} 12... Qe7
{[%clk 0:02:55.5]} 13. O-O {[%clk 0:02:48.1]} 13... c6 {[%clk 0:02:55.8]} 14.
Ne4 {[%clk 0:02:21.3]} 14... Be6 {[%clk 0:02:49.7]} 15. Nxf6+ {[%clk 0:02:19.4]}
15... Qxf6 {[%clk 0:02:48.9]} 16. Qc2 {[%clk 0:02:04.8]} 16... Rfd8 {[%clk
0:02:43.3]} 17. b3 {[%clk 0:01:47.9]} 17... Bf5 {[%clk 0:02:24.2]} 18. e4 {[%clk
0:01:46.2]} 18... Bg4 {[%clk 0:02:23.9]} 19. f3 {[%clk 0:01:45.5]} 19... Bd4+
{[%clk 0:02:23.7]} 20. Kh1 {[%clk 0:01:45.5]} 20... Be6 {[%clk 0:02:23]} 21. f4
{[%clk 0:01:36.1]} 21... Bg4 {[%clk 0:02:22.9]} 22. e5 {[%clk 0:01:29.2]} 22...
Qh6 {[%clk 0:02:15.6]} 23. Rde1 {[%clk 0:01:25.2]} 23... Bb6 {[%clk 0:01:56]}
24. Bc1 {[%clk 0:01:13.3]} 24... Qh5 {[%clk 0:01:38.7]} 25. f5 {[%clk
0:01:01.7]} 25... Re8 {[%clk 0:01:35.4]} 26. Bb2 {[%clk 0:00:57.2]} 26... Rad8
{[%clk 0:01:33.8]} 27. Rf4 {[%clk 0:00:40.6]} 27... Rd7 {[%clk 0:00:52.3]} 28.
Qe4 {[%clk 0:00:41.1]} 28... Bd1 {[%clk 0:00:38.6]} 29. Rh4 {[%clk 0:00:35.8]}
29... Qg5 {[%clk 0:00:38.6]} 30. e6 {[%clk 0:00:32.9]} 30... Rdd8 {[%clk
0:00:29.7]} 31. f6 {[%clk 0:00:18.8]} 31... h6 {[%clk 0:00:30.4]} 32. e7 {[%clk
0:00:13.5]} 32... Rd6 {[%clk 0:00:28.9]} 33. Be5 {[%clk 0:00:12.1]} 33... Re6
{[%clk 0:00:24.2]} 34. Bh3 {[%clk 0:00:09.8]} 34... Bc2 {[%clk 0:00:14]} 35.
Qxc2 {[%clk 0:00:07.3]} 35... Rxe5 {[%clk 0:00:15.4]} 36. Rxe5 {[%clk
0:00:08.3]} 36... Qxe5 {[%clk 0:00:16.8]} 37. Rg4 {[%clk 0:00:06.3]} 37... Qe1+
{[%clk 0:00:16.3]} 38. Kg2 {[%clk 0:00:07.7]} 38... Qg1+ {[%clk 0:00:17.3]} 39.
Kf3 {[%clk 0:00:09.3]} 39... Qe3+ {[%clk 0:00:13.5]} 40. Kg2 {[%clk 0:00:10.4]}
40... g5 {[%clk 0:00:13]} 41. Re4 {[%clk 0:00:08.2]} 41... Qg1+ {[%clk
0:00:13.3]} 42. Kf3 {[%clk 0:00:09.7]} 42... Qa1 {[%clk 0:00:09.8]} 43. Bg2
{[%clk 0:00:10.6]} 43... Qxf6+ {[%clk 0:00:10.5]} 44. Kg4 {[%clk 0:00:11.3]}
44... Rxe7 {[%clk 0:00:12]} 45. Rxe7 {[%clk 0:00:12.5]} 45... Qxe7 {[%clk
0:00:13.5]} 46. Qf5 {[%clk 0:00:13.3]} 46... Qe2+ {[%clk 0:00:14]} 47. Bf3
{[%clk 0:00:14.6]} 47... Qxh2 {[%clk 0:00:14.9]} 48. Be4 {[%clk 0:00:15.3]}
48... Bd4 {[%clk 0:00:09.7]} 49. Qc8+ {[%clk 0:00:14.7]} 49... Kg7 {[%clk
0:00:11]} 50. Qxb7 {[%clk 0:00:15.4]} 50... h5+ {[%clk 0:00:12.2]} 51. Kf5
{[%clk 0:00:13.6]} 51... Qxg3 {[%clk 0:00:12.3]} 52. Qxc6 {[%clk 0:00:12.3]}
52... Qf4# {[%clk 0:00:12.8]} 0-1

[Event "*** Titled Tuesday 3|2 Blitz"]
[Site "Chess.com"]
[Date "2016.01.05"]
[Round "2"]
[White "amaidel"]
[Black "Zlatan56"]
[Result "0-1"]
[WhiteElo "2366"]
[BlackElo "2551"]
[TimeControl "180+2"]
[EndTime "11:22:49 PST"]
[Termination "Zlatan56 won by resignation"]

1. e4 {[%clk 0:02:58.4]} 1... g6 {[%clk 0:02:20]} 2. d4 {[%clk 0:02:58.5]} 2...
Bg7 {[%clk 0:02:21.1]} 3. c3 {[%clk 0:02:59.4]} 3... d6 {[%clk 0:02:21.7]} 4.
Bd3 {[%clk 0:03:00.2]} 4... Nf6 {[%clk 0:02:22.9]} 5. Nf3 {[%clk 0:03:01.1]}
5... O-O {[%clk 0:02:24.3]} 6. O-O {[%clk 0:03:01.8]} 6... Nc6 {[%clk
0:02:25.8]} 7. h3 {[%clk 0:03:02.8]} 7... e5 {[%clk 0:02:26.1]} 8. Qc2 {[%clk
0:03:02.6]} 8... Re8 {[%clk 0:02:25.8]} 9. Re1 {[%clk 0:03:03]} 9... d5 {[%clk
0:02:23.6]} 10. exd5 {[%clk 0:02:57.9]} 10... Nxd5 {[%clk 0:02:23.9]} 11. dxe5
{[%clk 0:02:57.8]} 11... Ndb4 {[%clk 0:02:11.3]} 12. cxb4 {[%clk 0:02:58.4]}
12... Nxb4 {[%clk 0:02:12.8]} 13. Qb3 {[%clk 0:02:59.6]} 13... Nxd3 {[%clk
0:02:11.2]} 14. Rd1 {[%clk 0:02:58.1]} 14... Bf5 {[%clk 0:02:11.8]} 15. Bg5
{[%clk 0:02:56.9]} 15... Qd7 {[%clk 0:02:01.2]} 16. Bf6 {[%clk 0:02:57.7]} 16...
Nc5 {[%clk 0:01:46.4]} 17. Rxd7 {[%clk 0:02:33.6]} 17... Nxb3 {[%clk 0:01:46.5]}
18. axb3 {[%clk 0:02:32.1]} 18... Bxd7 {[%clk 0:01:47.2]} 19. Bxg7 {[%clk
0:02:29.4]} 19... Kxg7 {[%clk 0:01:47.3]} 20. Nc3 {[%clk 0:02:30.4]} 20... Bc6
{[%clk 0:01:48.7]} 21. Re1 {[%clk 0:02:29.7]} 21... Bxf3 {[%clk 0:01:48.8]} 22.
gxf3 {[%clk 0:02:30.3]} 22... Rad8 {[%clk 0:01:50.3]} 23. Re2 {[%clk 0:02:30.3]}
23... Rd3 {[%clk 0:01:47.1]} 24. Kg2 {[%clk 0:02:30.3]} 24... c6 {[%clk
0:01:43.9]} 25. f4 {[%clk 0:02:30.7]} 25... Rd4 {[%clk 0:01:45]} 26. Kg3 {[%clk
0:02:31]} 26... Rb4 {[%clk 0:01:45.3]} 27. Ne4 {[%clk 0:02:27.1]} 27... Rxb3+
{[%clk 0:01:46.2]} 28. Kg2 {[%clk 0:02:27.7]} 28... Rd8 {[%clk 0:01:47]} 29. Nd6
{[%clk 0:02:27.8]} 29... Kf8 {[%clk 0:01:43.5]} 30. f5 {[%clk 0:02:28.4]} 30...
gxf5 {[%clk 0:01:36.3]} 31. Nxf5 {[%clk 0:02:29]} 31... Rbd3 {[%clk 0:01:37]}
32. Re4 {[%clk 0:02:25.1]} 32... R8d5 {[%clk 0:01:32.4]} 33. Nd6 {[%clk
0:02:16.1]} 33... Rxd6 {[%clk 0:01:31.4]} 34. exd6 {[%clk 0:02:16.8]} 34... Rxd6
{[%clk 0:01:33]} 35. Rh4 {[%clk 0:02:17.2]} 35... h6 {[%clk 0:01:33.2]} 36. Ra4
{[%clk 0:02:14.7]} 36... a6 {[%clk 0:01:33.5]} 37. Re4 {[%clk 0:02:12.5]} 37...
c5 {[%clk 0:01:33.4]} 38. Re5 {[%clk 0:02:11.4]} 38... b6 {[%clk 0:01:34.3]} 39.
Re2 {[%clk 0:02:07.2]} 39... Rd3 {[%clk 0:01:35.1]} 40. f3 {[%clk 0:02:07.4]}
40... Rb3 {[%clk 0:01:35.7]} 41. Kg3 {[%clk 0:02:08.4]} 41... Kg7 {[%clk
0:01:33.9]} 42. Kg4 {[%clk 0:02:09.4]} 42... a5 {[%clk 0:01:32.9]} 43. f4 {[%clk
0:02:10.2]} 43... a4 {[%clk 0:01:32.6]} 44. h4 {[%clk 0:02:11.4]} 44... b5
{[%clk 0:01:31.7]} 45. Kf5 {[%clk 0:02:12.3]} 45... a3 {[%clk 0:01:24.5]} 46.
bxa3 {[%clk 0:02:12.3]} 46... Rxa3 {[%clk 0:01:26]} 47. Rg2+ {[%clk 0:02:13.3]}
47... Kf8 {[%clk 0:01:26.9]} 48. Rd2 {[%clk 0:02:08.9]} 48... c4 {[%clk
0:01:25.9]} 49. Rd5 {[%clk 0:02:09.3]} 49... Ra5 {[%clk 0:01:16.5]} 50. Rc5
{[%clk 0:02:03.4]} 50... Ke7 {[%clk 0:01:11.7]} 51. Ke5 {[%clk 0:02:04.3]} 51...
Kd7 {[%clk 0:01:12.6]} 52. f5 {[%clk 0:02:01.2]} 52... Ra6 {[%clk 0:01:10.9]}
53. Rxb5 {[%clk 0:02:01.3]} 53... c3 {[%clk 0:01:11.9]} 54. Rb1 {[%clk
0:02:00.4]} 54... c2 {[%clk 0:01:11.9]} 55. Rc1 {[%clk 0:02:00.9]} 55... Rc6
{[%clk 0:01:13.4]} 56. Kd5 {[%clk 0:02:01.9]} 56... Rc8 {[%clk 0:01:14.2]} 57.
Ke5 {[%clk 0:02:00.4]} 57... Ke7 {[%clk 0:01:12]} 58. f6+ {[%clk 0:01:54.2]}
58... Kd7 {[%clk 0:01:12.6]} 59. Kd5 {[%clk 0:01:54.6]} 59... Rc6 {[%clk
0:01:12.2]} 60. Ke5 {[%clk 0:01:53.7]} 60... Kc7 {[%clk 0:01:12.9]} 61. Kf5
{[%clk 0:01:52]} 61... Rc5+ {[%clk 0:01:08.4]} 62. Ke4 {[%clk 0:01:38.8]} 62...
Kd6 {[%clk 0:01:10.3]} 63. Kd4 {[%clk 0:01:39.9]} 63... Rc8 {[%clk 0:01:09.9]}
64. Kd3 {[%clk 0:01:37.4]} 64... Kd5 {[%clk 0:01:07.2]} 65. Kd2 {[%clk 0:01:35]}
65... Kd4 {[%clk 0:01:08.3]} 66. Rxc2 {[%clk 0:01:26.7]} 66... Rxc2+ {[%clk
0:01:08.4]} 67. Kxc2 {[%clk 0:01:28.6]} 67... h5 {[%clk 0:01:05.4]} 68. Kd2
{[%clk 0:01:27.6]} 68... Ke4 {[%clk 0:01:06]} 69. Kc3 {[%clk 0:01:27.5]} 69...
Ke5 {[%clk 0:00:58.1]} 70. Kd3 {[%clk 0:01:28]} 70... Kxf6 {[%clk 0:00:58.6]}
71. Ke4 {[%clk 0:01:29.1]} 71... Ke6 {[%clk 0:00:58.2]} 72. Kf4 {[%clk
0:01:29.9]} 72... f6 {[%clk 0:00:59.3]} 73. Ke4 {[%clk 0:01:30.8]} 73... f5+
{[%clk 0:01:00.4]} 74. Kd4 {[%clk 0:01:19.1]} 74... Kd6 {[%clk 0:00:58]} 75. Kd3
{[%clk 0:01:18.8]} 75... Ke5 {[%clk 0:00:58.5]} 76. Ke3 {[%clk 0:01:19.6]} 76...
f4+ {[%clk 0:00:59.7]} 77. Kf3 {[%clk 0:01:20.6]} 77... Kf5 {[%clk 0:01:00.8]}
0-1